bitfinex/quotes_SOLUSD_20250915
["timestamp","ask_amount","ask_price","bid_price","bid_amount"]
[1757969441007,2.41484843,234.46,234.4,33.5]
[1757969441206,2.41484843,234.48,234.43,26.0]
[1757969441532,2.41484843,234.48,234.44,33.52]
[1757969441900,2.41484843,234.48,234.45,0.66]
[1757969442104,2.41484843,234.48,234.46,0.66]
[1757969442402,0.06,234.51,234.47,32.86]
[1757969442610,4.36463708,234.49,234.47,32.86]
[1757969443628,2.41484843,234.48,234.47,32.86]
[1757969444041,4.26493794,234.47,234.43,26.0]
[1757969444213,2.41484843,234.46,234.44,33.52]
[1757969444725,4.26493794,234.47,234.45,0.66]
[1757969445031,2.41484843,234.48,234.45,0.66]
[1757969445617,2.41484843,234.48,234.46,0.66]
[1757969445817,2.41484843,234.48,234.47,33.52]
[1757969448326,0.1,234.49,234.47,33.52]
[1757969448533,2.41484843,234.48,234.47,32.86]
[1757969449052,0.1,234.49,234.47,33.52]
[1757969449249,2.41484843,234.48,234.47,32.86]
[1757969449733,0.1,234.49,234.47,37.78493794]
[1757969449933,0.1,234.49,234.48,0.66]
[1757969451026,2.51484843,234.49,234.47,33.52]
[1757969451230,133.8,234.52,234.48,0.66]
[1757969451433,2.41484843,234.5,234.48,0.66]
[1757969451737,2.41484843,234.5,234.49,0.66]
[1757969455744,2.41484843,234.51,234.49,0.66]
[1757969456051,2.41484843,234.51,234.5,32.84]
[1757969456252,2.41484843,234.51,234.5,33.52]
[1757969457940,136.21484843,234.52,234.5,33.52]
[1757969458250,136.21484843,234.52,234.51,0.68]
[1757969459727,135.34225135,234.52,234.51,0.68]
[1757969460525,0.06,234.57,234.51,0.68]
[1757969460526,4.26314391,234.57,234.51,0.68]
[1757969460739,1.54225135,234.54,234.51,0.68]
[1757969461049,1.54225135,234.55,234.51,0.68]
[1757969461255,4.26314391,234.57,234.51,4.94420972]
[1757969461437,4.26314391,234.57,234.52,0.68]
[1757969461638,133.8,234.58,234.53,32.82]
[1757969461841,135.34225135,234.58,234.54,0.68]
[1757969462349,135.34225135,234.58,234.55,4.26348326]
[1757969462534,135.34225135,234.58,234.56,32.84]
[1757969462956,135.34225135,234.58,234.57,0.67]
[1757969466242,133.8,234.58,234.57,0.67]
[1757969467334,108.19511654,234.58,234.57,0.67]
[1757969467858,82.59023308,234.58,234.57,0.67]
[1757969468365,0.1,234.59,234.57,0.67]
[1757969468534,0.1,234.59,234.58,0.67]
[1757969470851,82.59023308,234.64,234.58,0.67]
[1757969471158,1.54225135,234.61,234.59,32.82]
[1757969471358,1.54225135,234.61,234.59,33.49]
[1757969472260,1.60225135,234.6,234.56,32.86]
[1757969472456,1.54225135,234.57,234.56,32.86]
[1757969472755,14.92155525,234.56,234.53,32.92]
[1757969472964,1.54225135,234.54,234.53,32.92]
[1757969473859,5.80591639,234.54,234.53,32.92]
[1757969475767,16.525079,234.54,234.5,32.9]
[1757969475954,5.80646183,234.51,234.5,32.9]
[1757969476952,5.80646183,234.51,234.5,33.57]
[1757969477156,5.80646183,234.51,234.5,32.9]
[1757969478162,5.80646183,234.51,234.5,33.57]
[1757969479053,1.54225135,234.51,234.5,0.67]
[1757969479645,1.54225135,234.51,234.5,33.57]
[1757969480458,1.54225135,234.51,234.5,32.9]
[1757969480970,5.80646183,234.51,234.49,0.06]
[1757969481166,1.54225135,234.5,234.49,0.06]
[1757969481646,1.60225135,234.5,234.49,0.06]
[1757969484167,13.59559401,234.49,234.38,0.06]
[1757969484356,0.06,234.48,234.39,0.67]
[1757969485555,1.54225135,234.4,234.39,0.67]
[1757969486154,14.9272828,234.47,234.39,0.67]
[1757969486360,1.54225135,234.44,234.39,4.93637106]
[1757969486653,1.54225135,234.46,234.4,0.67]
[1757969487469,1.54225135,234.46,234.41,4.2660296]
[1757969487672,1.54225135,234.46,234.42,33.63]
[1757969487856,1.54225135,234.46,234.43,0.67]
[1757969488269,4.26452149,234.5,234.43,0.67]
[1757969488270,1.54225135,234.47,234.43,0.67]
[1757969488868,1.54225135,234.46,234.44,0.67]
[1757969489092,1.54225135,234.45,234.42,33.63]
[1757969489381,1.54225135,234.43,234.42,32.96]
[1757969489968,5.807917,234.43,234.42,32.96]
[1757969491375,5.807917,234.43,234.42,33.63]
[1757969492162,1.54225135,234.43,234.42,33.63]
[1757969493176,5.807917,234.43,234.42,32.96]
[1757969493370,5.807917,234.43,234.4,0.72]
[1757969493571,1.54225135,234.41,234.4,0.72]
[1757969495661,1.54225135,234.41,234.4,0.78]
[1757969498177,1.54225135,234.41,234.4,5.0462116]
[1757969498877,1.54225135,234.42,234.4,5.0462116]
[1757969499074,1.54225135,234.43,234.41,0.72]
[1757969499969,1.54225135,234.43,234.42,4.26584762]
[1757969500169,1.54225135,234.43,234.42,4.98584762]
[1757969501396,1.54225135,234.43,234.42,0.72]
[1757969502390,1.54225135,234.43,234.42,4.98584762]
[1757969507592,133.8,234.45,234.42,4.98584762]
[1757969507792,1.54225135,234.44,234.43,37.92566269]
[1757969508501,1.54225135,234.44,234.43,0.72]
[1757969508685,1.54225135,234.44,234.43,33.64]
[1757969509171,1.54225135,234.44,234.43,32.92]
[1757969509789,1.54225135,234.44,234.4,26.06]
[1757969509790,5.86773505,234.44,234.4,26.06]
[1757969510092,4.2654837,234.44,234.43,32.92]
[1757969510288,4.3254837,234.44,234.43,32.92]
[1757969510486,138.06532175,234.45,234.43,32.92]
[1757969510895,0.06,234.44,234.43,32.92]
[1757969511108,1.54225135,234.44,234.43,32.92]
[1757969511973,5.80773505,234.44,234.43,32.92]
[1757969513885,5.80773505,234.44,234.42,32.92]
[1757969514085,1.54225135,234.43,234.42,32.92]
[1757969517095,1.54225135,234.43,234.42,33.62]
[1757969519301,1.54225135,234.44,234.42,33.62]
[1757969519505,1.54225135,234.44,234.43,0.7]
[1757969519798,1.54225135,234.44,234.42,32.92]
[1757969520001,1.54225135,234.43,234.42,32.92]
[1757969520689,1.54225135,234.43,234.42,33.62]
[1757969521903,2.41209014,234.43,234.42,31.12]
[1757969523188,2.41209014,234.43,234.42,34.29296725]
[1757969526308,133.8,234.45,234.42,34.29296725]
[1757969526493,133.8,234.45,234.43,3.86296725]
[1757969526697,133.8,234.45,234.44,3.86296725]
[1757969526897,133.8,234.45,234.44,3.86589819]
[1757969528013,136.21209014,234.45,234.44,3.86589819]
[1757969529716,2.41209014,234.45,234.44,3.86589819]
[1757969532122,2.41209014,234.45,234.44,0.69]
[1757969532307,2.41209014,234.45,234.44,3.86620304]
[1757969533001,2.41209014,234.45,234.44,8.13168674]
[1757969534010,2.44209014,234.45,234.44,8.13168674]
[1757969534506,133.86,234.51,234.49,72.26328453]
[1757969534706,136.27209014,234.5,234.49,72.26328453]
[1757969534924,136.21209014,234.5,234.49,72.26328453]
[1757969536204,140.47648246,234.5,234.49,72.26328453]
[1757969536629,140.53648246,234.5,234.49,72.26328453]
[1757969536814,140.53648246,234.5,234.49,11.41267254]
[1757969537013,6.73648246,234.5,234.49,11.41267254]
[1757969538623,133.8,234.49,234.42,0.06]
[1757969538813,2.41209014,234.43,234.42,32.94]
[1757969539143,2.41209014,234.43,234.42,33.63]
[1757969542813,4.26493794,234.47,234.42,33.63]
[1757969543013,2.41209014,234.43,234.42,32.94]
[1757969543217,2.41209014,234.43,234.42,0.75]
[1757969543420,2.41209014,234.43,234.42,33.61]
[1757969545319,133.8,234.48,234.42,37.87576246]
[1757969545526,2.41209014,234.43,234.42,37.18576246]
[1757969545713,2.41209014,234.43,234.42,40.36386646]
[1757969546115,2.41209014,234.52,234.45,26.0]
[1757969546321,2.41209014,234.52,234.46,39.14019414]
[1757969546519,2.41209014,234.52,234.47,3.868104]
[1757969546718,0.66,234.56,234.46,35.27209014]
[1757969546719,2.41209014,234.53,234.48,3.868104]
[1757969547032,2.41209014,234.54,234.5,4.26439232]
[1757969547208,2.41209014,234.54,234.51,0.69]
[1757969547409,2.41209014,234.54,234.52,32.94]
[1757969547918,2.41209014,234.54,234.52,33.63]
[1757969548118,2.41209014,234.54,234.53,0.69]
[1757969550927,2.41209014,234.54,234.53,4.95384684]
[1757969551135,133.8,234.59,234.53,8.11828093]
[1757969551328,2.41209014,234.59,234.54,3.85443409]
[1757969551530,2.41209014,234.59,234.55,33.61]
[1757969551833,2.41209014,234.6,234.56,0.69]
[1757969552032,2.41209014,234.6,234.56,4.95325675]
[1757969552212,2.41209014,234.6,234.57,0.72]
[1757969552417,2.41209014,234.6,234.58,32.96]
[1757969553036,2.41209014,234.61,234.58,33.68]
[1757969553630,158.04861257,234.68,234.58,33.68]
[1757969553631,0.1,234.69,234.61,26.0]
[1757969553835,2.41209014,234.67,234.62,0.72]
[1757969554155,2.41209014,234.67,234.63,33.68]
[1757969554329,2.41209014,234.67,234.64,0.72]
[1757969554530,0.1,234.69,234.64,0.72]
[1757969554729,0.1,234.69,234.63,32.96]
[1757969554926,2.41209014,234.68,234.65,0.72]
[1757969555128,2.41209014,234.67,234.66,33.48]
[1757969555326,2.41209014,234.67,234.66,46.27596266]
[1757969555743,0.1,234.69,234.66,12.79596266]
[1757969555945,2.41209014,234.67,234.65,0.72]
[1757969556122,2.41209014,234.67,234.66,33.5]
[1757969556845,2.41209014,234.67,234.66,33.48]
[1757969558329,2.41209014,234.67,234.64,33.46]
[1757969558539,2.41209014,234.66,234.65,0.72]
[1757969559134,2.41209014,234.66,234.64,33.46]
[1757969559342,2.41209014,234.66,234.64,34.18]
[1757969560021,0.1,234.69,234.64,37.72181006]
[1757969560226,2.41209014,234.67,234.64,37.72181006]
[1757969560522,2.41209014,234.67,234.65,0.72]
[1757969561325,2.41209014,234.67,234.65,4.98156899]
[1757969561545,0.1,234.69,234.65,4.98156899]
[1757969561546,2.41209014,234.66,234.65,0.72]
[1757969563533,2.41209014,234.66,234.64,33.46]
[1757969563719,0.77,234.69,234.64,46.53844782]
[1757969563720,2.41209014,234.65,234.64,46.53844782]
[1757969564157,2.41209014,234.65,234.64,47.25844782]
[1757969564354,2.41209014,234.65,234.64,46.53844782]
[1757969566344,2.41209014,234.67,234.64,51.520288]
[1757969566551,2.41209014,234.67,234.65,0.72]
[1757969566729,2.41209014,234.67,234.66,34.14]
[1757969568144,2.41209014,234.68,234.66,34.14]
[1757969569041,0.1,234.69,234.66,34.14]
[1757969569241,2.41209014,234.68,234.66,34.14]
[1757969571827,2.41209014,234.67,234.66,34.14]
[1757969572253,2.41209014,234.68,234.66,34.14]
[1757969572455,2.41209014,234.68,234.67,0.72]
[1757969575761,2.41209014,234.68,234.66,33.42]
[1757969575935,2.41209014,234.68,234.66,34.14]
[1757969576332,0.1,234.69,234.67,0.72]
[1757969576537,0.1,234.69,234.68,33.34]
[1757969577349,0.1,234.69,234.68,34.06]
[1757969578458,0.1,234.69,234.68,38.32112152]
[1757969587661,0.1,234.69,234.68,33.93]
[1757969588366,0.1,234.69,234.68,33.24]
[1757969588567,0.13,234.69,234.68,33.24]
[1757969589151,0.13,234.69,234.68,33.91]
[1757969589466,0.13,234.69,234.68,38.17112152]
[1757969589843,0.13,234.69,234.66,26.0]
[1757969589844,0.13,234.69,234.67,4.26128895]
[1757969590058,0.13,234.69,234.68,33.24]
[1757969591365,0.13,234.69,234.68,33.91]
[1757969592070,0.13,234.69,234.68,38.17112152]
[1757969595260,0.13,234.69,234.68,37.46112152]
[1757969595483,0.13,234.69,234.68,38.13112152]
[1757969595803,0.13,234.69,234.68,33.2]
[1757969596166,2.36950042,234.69,234.62,0.67]
[1757969596367,1.53950042,234.66,234.63,33.2]
[1757969597072,1.53950042,234.66,234.63,33.87]
[1757969597886,1.53950042,234.66,234.64,4.26184793]
[1757969598085,0.7,234.68,234.65,33.22]
[1757969598086,1.53950042,234.67,234.65,33.22]
[1757969598382,1.53950042,234.66,234.65,33.22]
[1757969598888,1.53950042,234.66,234.65,33.2]
[1757969599773,0.83,234.69,234.65,33.2]
[1757969599970,1.53950042,234.66,234.65,37.46161126]
[1757969600576,1.53950042,234.66,234.65,33.2]
[1757969601468,0.83,234.69,234.65,33.87]
[1757969601696,1.53950042,234.67,234.65,38.13166631]
[1757969601883,1.53950042,234.67,234.65,37.46166631]
[1757969602478,1.53950042,234.67,234.65,38.13166631]
[1757969602685,0.13,234.69,234.65,37.46166631]
[1757969602882,1.53950042,234.67,234.65,38.13166631]
[1757969603585,0.13,234.69,234.65,38.13166631]
[1757969603893,1.53950042,234.67,234.65,38.13166631]
[1757969605679,1.53950042,234.67,234.65,37.46166631]
[1757969605886,1.53950042,234.68,234.65,37.46166631]
[1757969606072,1.53950042,234.68,234.65,48.11583208]
[1757969606280,1.53950042,234.68,234.66,0.67]
[1757969606481,1.53950042,234.68,234.67,33.83]
[1757969607281,0.13,234.69,234.67,33.83]
[1757969607784,1.53950042,234.68,234.67,33.83]
[1757969607975,1.53950042,234.68,234.67,33.16]
[1757969608385,0.13,234.69,234.67,39.63080352]
[1757969608570,0.13,234.69,234.68,2.20950042]
[1757969609179,0.13,234.69,234.68,5.5180852]
[1757969609996,0.13,234.69,234.68,9.77920672]
[1757969613194,0.13,234.69,234.68,8.09754473]
[1757969613400,0.13,234.69,234.68,41.29754473]
[1757969614978,0.13,234.69,234.68,7.42754473]
[1757969615177,0.13,234.69,234.68,40.60754473]
[1757969615578,0.13,234.69,234.68,7.42754473]
[1757969615778,0.13,234.69,234.68,40.62754473]
[1757969616595,0.13,234.69,234.68,37.46112152]
[1757969617084,0.13,234.69,234.68,38.14112152]
[1757969617484,0.13,234.69,234.68,39.68062194]
[1757969617685,0.13,234.69,234.68,41.30721792]
[1757969618289,0.13,234.69,234.68,38.14112152]
[1757969619208,0.13,234.69,234.68,42.84693933]
[1757969619696,0.13,234.69,234.68,39.68062194]
[1757969619886,0.13,234.69,234.68,42.84650706]
[1757969620201,0.13,234.69,234.68,39.68062194]
[1757969620696,0.13,234.69,234.68,42.84647511]
[1757969620903,0.13,234.69,234.68,3.16585317]
[1757969620904,2.31950042,234.69,234.68,3.16585317]
[1757969621084,2.31950042,234.69,234.68,36.34682647]
[1757969621394,2.31950042,234.69,234.68,3.16682647]
[1757969621604,2.31950042,234.69,234.68,33.2]
[1757969624590,6.58044038,234.69,234.68,33.2]
[1757969626004,6.58044038,234.69,234.61,4.94228303]
[1757969626209,1.53950042,234.66,234.62,33.16]
[1757969626381,1.53950042,234.66,234.62,33.84]
[1757969627107,1.53950042,234.67,234.63,0.68]
[1757969627323,1.53950042,234.67,234.64,33.16]
[1757969627604,0.13,234.69,234.64,33.16]
[1757969627791,1.66950042,234.69,234.65,0.68]
[1757969627995,1.66950042,234.69,234.66,33.84]
[1757969628194,1.66950042,234.69,234.67,33.16]
[1757969629508,1.53950042,234.68,234.67,33.16]
[1757969629681,2.18950042,234.68,234.67,33.16]
[1757969630306,1.53950042,234.68,234.67,33.16]
[1757969630500,2.18950042,234.68,234.63,0.68]
[1757969630709,2.18950042,234.68,234.64,33.14]
[1757969630895,1.53950042,234.65,234.64,33.14]
[1757969631310,1.53950042,234.65,234.63,0.68]
[1757969631510,1.53950042,234.65,234.64,33.14]
[1757969632303,1.53950042,234.65,234.64,33.82]
[1757969632498,1.53950042,234.65,234.64,33.14]
[1757969633112,5.80117085,234.65,234.64,33.14]
[1757969633292,1.53950042,234.65,234.64,33.14]
[1757969634009,1.53950042,234.65,234.64,33.84]
[1757969634199,1.53950042,234.66,234.64,33.84]
[1757969634510,1.53950042,234.66,234.65,0.7]
[1757969636913,1.53950042,234.66,234.65,33.1]
[1757969641213,5.80098512,234.66,234.65,33.1]
[1757969641406,0.13,234.69,234.65,33.8]
[1757969641598,1.53950042,234.67,234.66,0.7]
[1757969642121,1.53950042,234.68,234.66,0.7]
[1757969642314,1.53950042,234.68,234.65,37.36163452]
[1757969642515,1.53950042,234.68,234.66,33.78]
[1757969642993,1.66950042,234.69,234.66,33.08]
[1757969643195,1.66950042,234.69,234.67,0.7]
[1757969643414,0.13,234.69,234.68,0.7]
[1757969643599,0.13,234.69,234.68,2.23950042]
[1757969643925,0.13,234.69,234.68,6.27016919]
[1757969644238,0.13,234.69,234.68,7.97720002]
[1757969645014,0.13,234.69,234.68,7.9762011]
[1757969645216,0.13,234.69,234.68,12.23732262]
[1757969646104,3.20499,234.69,234.68,3.16418027]
[1757969646305,7.46592996,234.69,234.68,33.08]
[1757969647017,7.46592996,234.69,234.68,33.12]
[1757969649320,7.46592996,234.69,234.63,0.7]
[1757969649522,2.40499,234.64,234.59,30.26257768]
[1757969649825,2.40499,234.65,234.61,0.7]
[1757969650024,2.40499,234.65,234.62,0.7]
[1757969650706,2.40499,234.65,234.63,0.7]
[1757969650907,2.40499,234.65,234.64,33.1]
[1757969651720,7.33665631,234.65,234.58,0.7]
[1757969651924,2.40499,234.62,234.58,0.7]
[1757969652133,2.40499,234.62,234.59,33.1]
[1757969652425,2.40499,234.62,234.6,0.7]
[1757969652810,2.40499,234.62,234.59,33.1]
[1757969653110,2.40499,234.62,234.59,33.8]
[1757969653933,0.67,234.65,234.59,38.06261074]
[1757969654228,2.40499,234.65,234.6,0.7]
[1757969654424,2.40499,234.65,234.61,0.7]
[1757969655705,2.40499,234.65,234.59,37.36275339]
[1757969655706,2.40499,234.63,234.59,37.36275339]
[1757969656022,2.40499,234.63,234.6,3.1634795]
[1757969656207,2.40499,234.63,234.61,3.1634795]
[1757969656402,2.40499,234.63,234.59,38.06275339]
[1757969656637,2.40499,234.61,234.6,3.16376789]
[1757969656929,7.3373829,234.61,234.6,33.1]
[1757969657228,7.3373829,234.61,234.59,33.1]
[1757969657408,0.67,234.6,234.59,33.1]
[1757969658129,0.67,234.6,234.56,33.1]
[1757969658422,2.40499,234.57,234.51,4.96408458]
[1757969658627,2.40499,234.55,234.52,36.96482006]
[1757969658807,2.40499,234.55,234.53,3.86482006]
[1757969659008,4.26310392,234.58,234.53,0.7]
[1757969659317,2.40499,234.55,234.53,0.7]
[1757969660635,2.40499,234.55,234.52,33.1]
[1757969660939,2.40499,234.55,234.53,0.7]
[1757969661125,2.40499,234.55,234.52,37.36396158]
[1757969661335,2.40499,234.56,234.54,0.7]
[1757969661633,2.40499,234.56,234.55,0.7]
[1757969663132,2.40499,234.56,234.54,4.26356469]
[1757969663429,2.40499,234.56,234.54,0.7]
[1757969664533,2.40499,234.56,234.54,4.96350866]
[1757969664731,2.40499,234.56,234.54,0.7]
[1757969665029,2.40499,234.56,234.52,38.06390751]
[1757969665224,2.40499,234.56,234.53,0.7]
[1757969665615,3.07499,234.55,234.49,0.7]
[1757969665821,3.07499,234.55,234.5,33.08]
[1757969665822,0.67,234.55,234.5,33.08]
[1757969666034,2.40499,234.51,234.5,33.08]
[1757969668016,6.66920048,234.51,234.5,33.08]
[1757969668414,2.40499,234.51,234.5,33.08]
[1757969670416,3.07499,234.51,234.5,33.08]
[1757969670817,7.33920048,234.51,234.5,33.08]
[1757969671745,7.33920048,234.51,234.48,33.12]
[1757969671952,2.40499,234.49,234.48,33.12]
[1757969672323,3.08499,234.49,234.48,33.12]
[1757969672646,6.66956418,234.49,234.48,33.12]
[1757969673846,6.66956418,234.49,234.48,0.06]
[1757969674343,134.48,234.57,234.48,5.00475605]
[1757969674544,12.81531002,234.58,234.49,33.74]
[1757969674744,2.40499,234.56,234.5,0.68]
[1757969674935,2.40499,234.55,234.5,0.68]
[1757969675128,2.40499,234.54,234.49,33.06]
[1757969675333,2.40499,234.54,234.5,0.68]
[1757969675542,2.40499,234.53,234.51,4.94406543]
[1757969675741,2.40499,234.53,234.52,0.68]
[1757969675933,2.40499,234.53,234.49,0.68]
[1757969676135,4.26348326,234.55,234.51,33.18]
[1757969676347,4.94348326,234.55,234.51,33.18]
[1757969677031,4.26348326,234.55,234.51,33.18]
[1757969677233,4.2633015,234.56,234.51,33.18]
[1757969677644,2.40499,234.52,234.51,33.86]
[1757969677849,2.40499,234.52,234.51,38.12421048]
[1757969679852,2.40499,234.53,234.51,38.12421048]
[1757969680554,2.40499,234.52,234.51,38.12421048]
[1757969680953,2.40499,234.54,234.51,38.12421048]
[1757969681258,2.40499,234.54,234.52,0.68]
[1757969681771,2.40499,234.53,234.51,37.44421048]
[1757969682144,2.40499,234.53,234.51,38.12421048]
[1757969682937,2.40499,234.53,234.51,4.94421048]
[1757969683137,2.40499,234.53,234.52,33.16]
[1757969683459,2.40499,234.53,234.52,33.14]
[1757969684653,2.40499,234.53,234.52,33.82]
[1757969684858,2.40499,234.53,234.52,33.14]
[1757969685541,2.40499,234.53,234.52,33.82]
[1757969686736,133.8,234.57,234.52,38.08402865]
[1757969686953,133.8,234.57,234.53,0.68]
[1757969687157,136.20499,234.57,234.54,37.38366504]
[1757969687352,136.20499,234.57,234.55,0.68]
[1757969687668,136.20499,234.57,234.56,0.68]
[1757969688660,133.8,234.57,234.56,0.68]
[1757969689955,133.8,234.57,234.56,4.9433015]
[1757969690157,136.20499,234.57,234.51,10.66023664]
[1757969690339,2.40499,234.54,234.52,37.38402865]
[1757969690542,2.40499,234.53,234.49,0.68]
[1757969690753,2.40499,234.53,234.5,33.8]
[1757969691060,2.40499,234.53,234.51,0.68]
[1757969691264,2.40499,234.53,234.52,0.68]
[1757969692252,136.20499,234.57,234.52,4.94402865]
[1757969692455,136.20499,234.57,234.53,33.14]
[1757969692660,136.20499,234.57,234.54,0.68]
[1757969693163,136.20499,234.57,234.55,0.68]
[1757969693351,136.20499,234.57,234.56,33.16]
[1757969693852,136.23499,234.57,234.56,33.16]
[1757969694454,133.83,234.57,234.56,38.0933015]
[1757969695157,133.83,234.57,234.56,37.4233015]
[1757969695967,133.83,234.57,234.56,38.0933015]
[1757969697854,133.83,234.57,234.56,37.4233015]
[1757969701269,133.83,234.57,234.56,33.16]
[1757969701870,133.83,234.57,234.56,37.4233015]
[1757969703071,136.90499,234.57,234.53,4.26381642]
[1757969703245,136.90499,234.57,234.54,36.24897835]
[1757969703447,136.90499,234.57,234.54,33.08]
[1757969703943,136.23499,234.57,234.54,33.77]
[1757969704256,136.23499,234.57,234.54,33.08]
[1757969704459,136.90499,234.57,234.54,33.08]
[1757969704782,2.40499,234.55,234.51,4.26404163]
[1757969705068,134.5,234.57,234.52,33.08]
[1757969705268,2.40499,234.55,234.52,33.08]
[1757969705867,1.54196778,234.55,234.52,33.77]
[1757969706974,1.54196778,234.55,234.53,4.26384684]
[1757969707157,1.54196778,234.55,234.54,33.06]
[1757969708581,1.54196778,234.56,234.54,33.06]
[1757969709281,1.54196778,234.55,234.51,4.26406852]
[1757969709490,0.67,234.56,234.52,36.23233889]
[1757969709491,1.54196778,234.53,234.52,36.23233889]
[1757969709971,1.54196778,234.54,234.52,36.23233889]
[1757969710164,1.54196778,234.54,234.52,33.06]
[1757969710366,0.67,234.56,234.52,33.06]
[1757969710674,135.34196778,234.55,234.52,33.06]
[1757969710872,135.34196778,234.55,234.52,38.01399691]
[1757969711077,135.34196778,234.55,234.52,37.32399691]
[1757969712082,135.34196778,234.55,234.52,38.01399691]
[1757969713078,135.34196778,234.55,234.52,37.32399691]
[1757969713476,1.54196778,234.53,234.48,0.06]
[1757969713674,134.47,234.54,234.48,29.38]
[1757969713675,1.54196778,234.49,234.48,29.38]
[1757969713876,1.54196778,234.49,234.48,32.55371897]
[1757969714079,1.54196778,234.49,234.48,0.06]
[1757969716291,133.8,234.54,234.48,0.75]
[1757969716490,1.54196778,234.53,234.48,0.75]
[1757969716697,135.34196778,234.54,234.48,0.75]
[1757969716866,135.34196778,234.54,234.48,5.01473513]
[1757969717189,135.34196778,234.54,234.49,3.17119836]
[1757969717391,1.54196778,234.53,234.5,33.77]
[1757969719693,135.34196778,234.54,234.5,33.77]
[1757969720190,135.34196778,234.54,234.5,38.0343707]
[1757969721183,139.60567215,234.54,234.5,33.77]
[1757969722097,1.54196778,234.53,234.5,38.03436702]
[1757969723003,1.54196778,234.53,234.5,33.77]
[1757969724205,1.54196778,234.51,234.5,33.08]
[1757969724402,1.54196778,234.51,234.48,33.1]
[1757969724601,135.34196778,234.54,234.49,3.86286309]
[1757969724809,133.8,234.54,234.5,3.17286309]
[1757969724981,133.8,234.54,234.51,33.75]
[1757969725186,133.8,234.54,234.52,0.69]
[1757969725508,133.8,234.54,234.53,0.69]
[1757969725904,1.54196778,234.56,234.53,4.95384684]
[1757969726207,1.57196778,234.57,234.54,0.69]
[1757969727214,1.57196778,234.57,234.52,0.69]
[1757969727509,1.54196778,234.56,234.53,3.86101642]
[1757969727692,1.54196778,234.56,234.53,0.69]
[1757969728204,1.57196778,234.57,234.54,0.69]
[1757969728411,1.57196778,234.57,234.54,33.75]
[1757969730810,0.03,234.57,234.55,0.69]
[1757969731011,0.03,234.57,234.54,37.32355381]
[1757969731506,0.03,234.57,234.55,0.69]
[1757969731709,1.57196778,234.57,234.54,33.06]
[1757969731905,1.57196778,234.57,234.54,33.75]
[1757969732909,1.54196778,234.56,234.54,33.06]
[1757969733111,1.54196778,234.55,234.48,1.60196778]
[1757969733418,1.54196778,234.55,234.49,36.92208927]
[1757969733717,1.54196778,234.55,234.5,3.88208927]
[1757969733916,1.54196778,234.55,234.51,3.88208927]
[1757969734110,1.54196778,234.55,234.52,33.75]
[1757969736004,1.54196778,234.55,234.52,33.04]
[1757969736325,0.03,234.57,234.54,1.54196778]
[1757969736496,0.03,234.57,234.56,1.54196778]
[1757969736693,0.03,234.57,234.56,3.17003538]
[1757969736904,0.03,234.57,234.56,5.42200316]
[1757969737193,0.03,234.62,234.58,1.54196778]
[1757969737392,0.03,234.62,234.59,33.1]
[1757969737594,0.03,234.62,234.59,33.81]
[1757969737794,0.03,234.62,234.59,38.51984168]
[1757969738101,0.03,234.62,234.59,42.78259797]
[1757969739697,0.03,234.62,234.59,41.24063019]
[1757969740832,0.03,234.62,234.59,33.1]
[1757969741019,1.54196778,234.61,234.59,33.1]
[1757969741908,1.57196778,234.6,234.59,33.1]
[1757969742312,5.83454237,234.6,234.59,33.1]